[Event "Early-Titled-Tuesday-Blitz-October-24-2023"]
[Site "Chess.com"]
[Date "2023.10.24"]
[Round "5"]
[White "RCone"]
[Black "Apocalyps999"]
[Result "1-0"]
[WhiteElo "2432"]
[BlackElo "2296"]
[TimeControl "180+1"]
[EndTime "8:55:52 PDT"]
[Termination "RCone won by resignation"]

1. e4 {[%clk 0:01:59.6]} 1... e5 {[%clk 0:02:56.2]} 2. Bc4 {[%clk 0:01:58.8]}
2... Nf6 {[%clk 0:02:55.7]} 3. Nc3 {[%clk 0:01:58.6]} 3... Nxe4 {[%clk
0:02:53.1]} 4. Qh5 {[%clk 0:01:58.1]} 4... Nd6 {[%clk 0:02:41.9]} 5. Bb3 {[%clk
0:01:54.6]} 5... Nc6 {[%clk 0:02:28.7]} 6. Nb5 {[%clk 0:01:54.7]} 6... g6 {[%clk
0:02:20.6]} 7. Qf3 {[%clk 0:01:55.2]} 7... f5 {[%clk 0:02:06.8]} 8. Qd5 {[%clk
0:01:55.8]} 8... Qe7 {[%clk 0:01:39]} 9. Nxc7+ {[%clk 0:01:56]} 9... Kd8 {[%clk
0:01:39]} 10. Nxa8 {[%clk 0:01:56.7]} 10... b6 {[%clk 0:01:37.1]} 11. Ne2 {[%clk
0:01:54.9]} 11... Bb7 {[%clk 0:01:30.1]} 12. Qd3 {[%clk 0:01:55.5]} 12... e4
{[%clk 0:01:24.6]} 13. Qh3 {[%clk 0:01:35]} 13... Bxa8 {[%clk 0:01:18.1]} 14.
O-O {[%clk 0:01:34.2]} 14... Ne5 {[%clk 0:01:12.3]} 15. d4 {[%clk 0:01:19.1]}
15... Ng4 {[%clk 0:01:08.5]} 16. Bf4 {[%clk 0:01:11.5]} 16... g5 {[%clk
0:01:02.7]} 17. Be5 {[%clk 0:00:58.8]} 17... Nxe5 {[%clk 0:01:00.1]} 18. dxe5
{[%clk 0:00:59.7]} 18... Qxe5 {[%clk 0:01:00.5]} 19. Qh5 {[%clk 0:00:45.5]}
19... Qf6 {[%clk 0:00:54.5]} 20. Rad1 {[%clk 0:00:42.9]} 20... Be7 {[%clk
0:00:40]} 21. Nc3 {[%clk 0:00:42.5]} 21... Qg6 {[%clk 0:00:26.4]} 22. Qxg6
{[%clk 0:00:38.6]} 22... hxg6 {[%clk 0:00:27.3]} 23. Bd5 {[%clk 0:00:38.1]}
23... Bxd5 {[%clk 0:00:25.2]} 24. Nxd5 {[%clk 0:00:38.3]} 24... Nc4 {[%clk
0:00:20.5]} 25. b3 {[%clk 0:00:32]} 25... Ne5 {[%clk 0:00:20.1]} 26. Nxe7 {[%clk
0:00:31.7]} 26... Kxe7 {[%clk 0:00:19.9]} 27. Rd5 {[%clk 0:00:26.7]} 27... Ke6
{[%clk 0:00:20]} 28. Rfd1 {[%clk 0:00:26.3]} 28... Nd3 {[%clk 0:00:20.3]} 29.
Rd4 {[%clk 0:00:21.6]} 29... Nc5 {[%clk 0:00:18.6]} 30. b4 {[%clk 0:00:20.1]}
30... Na4 {[%clk 0:00:17.5]} 31. Rd6+ {[%clk 0:00:19.1]} 31... Ke5 {[%clk
0:00:17.2]} 32. R1d5+ {[%clk 0:00:16.3]} 32... Kf4 {[%clk 0:00:17.4]} 33. Rxd7
{[%clk 0:00:13.8]} 33... Nc3 {[%clk 0:00:17.5]} 34. Rd2 {[%clk 0:00:13]} 34...
Nb1 {[%clk 0:00:16.4]} 35. Re2 {[%clk 0:00:12.1]} 35... Nc3 {[%clk 0:00:15.7]}
36. g3+ {[%clk 0:00:11.3]} 36... Kg4 {[%clk 0:00:15.3]} 37. Re3 {[%clk
0:00:10.3]} 37... Nd1 {[%clk 0:00:15.5]} 38. Rxd1 {[%clk 0:00:08.3]} 38... Rc8
{[%clk 0:00:15.1]} 39. Rd2 {[%clk 0:00:07.8]} 39... Rc4 {[%clk 0:00:14.9]} 40.
Kg2 {[%clk 0:00:06.1]} 40... Rxb4 {[%clk 0:00:12.6]} 41. h3+ {[%clk 0:00:07]}
41... Kh5 {[%clk 0:00:13.4]} 42. Rb3 {[%clk 0:00:06.1]} 42... Ra4 {[%clk
0:00:13.2]} 43. c4 {[%clk 0:00:05.9]} 43... Kh6 {[%clk 0:00:13.8]} 44. Rc3
{[%clk 0:00:05]} 44... Ra5 {[%clk 0:00:13.5]} 45. Rd5 {[%clk 0:00:04.8]} 45...
Rc5 {[%clk 0:00:14.4]} 46. Rxc5 {[%clk 0:00:05]} 46... bxc5 {[%clk 0:00:15.3]}
47. Ra3 {[%clk 0:00:05.6]} 47... a5 {[%clk 0:00:16.2]} 48. Rxa5 {[%clk
0:00:05.8]} 48... Kg7 {[%clk 0:00:17]} 49. Rxc5 {[%clk 0:00:06.4]} 49... Kf6
{[%clk 0:00:17.9]} 50. a4 {[%clk 0:00:06.2]} 50... f4 {[%clk 0:00:17.8]} 51. g4
{[%clk 0:00:05.4]} 51... f3+ {[%clk 0:00:18]} 52. Kg3 {[%clk 0:00:04.9]} 52...
Ke7 {[%clk 0:00:18.9]} 53. Re5+ {[%clk 0:00:04.6]} 53... Kd6 {[%clk 0:00:19.8]}
54. Rxe4 {[%clk 0:00:05.2]} 54... Kc6 {[%clk 0:00:20.7]} 55. Re3 {[%clk
0:00:05.5]} 55... Kb6 {[%clk 0:00:21.6]} 56. Rxf3 {[%clk 0:00:06.3]} 56... Kc5
{[%clk 0:00:22.5]} 57. Rf6 {[%clk 0:00:07]} 57... Kb4 {[%clk 0:00:23.4]} 58.
Rxg6 {[%clk 0:00:07.7]} 58... Kxa4 {[%clk 0:00:24.3]} 59. Rxg5 {[%clk
0:00:08.3]} 59... Kb4 {[%clk 0:00:25.2]} 60. Rf5 {[%clk 0:00:08.9]} 60... Kxc4
{[%clk 0:00:26.1]} 61. h4 {[%clk 0:00:09.4]} 61... Kd4 {[%clk 0:00:27]} 62. h5
{[%clk 0:00:10.2]} 62... Kc3 {[%clk 0:00:27.9]} 63. h6 {[%clk 0:00:11.1]} 63...
Kd2 {[%clk 0:00:28.8]} 64. h7 {[%clk 0:00:12]} 64... Ke2 {[%clk 0:00:29.7]} 65.
h8=Q {[%clk 0:00:10.8]} 65... Kf1 {[%clk 0:00:30.6]} 66. Qh1+ {[%clk 0:00:10.9]}
1-0

[Event "Early-Titled-Tuesday-Blitz-October-24-2023"]
[Site "Chess.com"]
[Date "2023.10.24"]
[Round "5"]
[White "Artemiki"]
[Black "verrbaa"]
[Result "1-0"]
[WhiteElo "2335"]
[BlackElo "2436"]
[TimeControl "180+1"]
[EndTime "8:55:53 PDT"]
[Termination "Artemiki won on time"]

1. e4 {[%clk 0:03:00.9]} 1... e5 {[%clk 0:02:59.5]} 2. Nf3 {[%clk 0:03:01.3]}
2... Nc6 {[%clk 0:02:59.3]} 3. Bb5 {[%clk 0:03:01.9]} 3... a6 {[%clk 0:02:59]}
4. Ba4 {[%clk 0:03:02.4]} 4... Nf6 {[%clk 0:02:59.2]} 5. O-O {[%clk 0:03:02.5]}
5... Be7 {[%clk 0:02:59.5]} 6. d3 {[%clk 0:03:00.7]} 6... d6 {[%clk 0:02:55.1]}
7. c3 {[%clk 0:03:00.9]} 7... O-O {[%clk 0:02:54.7]} 8. Re1 {[%clk 0:03:00.3]}
8... Re8 {[%clk 0:02:46.3]} 9. Nbd2 {[%clk 0:02:57.8]} 9... Bf8 {[%clk
0:02:44.9]} 10. Nf1 {[%clk 0:02:54.2]} 10... g6 {[%clk 0:02:42.2]} 11. Ng3
{[%clk 0:02:47.3]} 11... Bg7 {[%clk 0:02:41.9]} 12. d4 {[%clk 0:02:47.7]} 12...
b5 {[%clk 0:02:38]} 13. Bb3 {[%clk 0:02:45.9]} 13... Bb7 {[%clk 0:02:18.5]} 14.
Bg5 {[%clk 0:02:19.3]} 14... h6 {[%clk 0:02:16.2]} 15. Bxf6 {[%clk 0:02:19.4]}
15... Qxf6 {[%clk 0:02:10.6]} 16. Bd5 {[%clk 0:02:16.7]} 16... exd4 {[%clk
0:01:39.5]} 17. cxd4 {[%clk 0:02:14.2]} 17... Rab8 {[%clk 0:01:39.2]} 18. Bxc6
{[%clk 0:01:14.2]} 18... Bxc6 {[%clk 0:01:40.1]} 19. Rc1 {[%clk 0:01:14.4]}
19... Bd7 {[%clk 0:01:27.9]} 20. Rxc7 {[%clk 0:00:44.9]} 20... Bg4 {[%clk
0:01:27.4]} 21. Qb3 {[%clk 0:00:39.3]} 21... Rbc8 {[%clk 0:01:07.9]} 22. Rec1
{[%clk 0:00:32]} 22... Rxc7 {[%clk 0:00:28.4]} 23. Rxc7 {[%clk 0:00:32.9]} 23...
Rc8 {[%clk 0:00:28.8]} 24. Rxc8+ {[%clk 0:00:28.4]} 24... Bxc8 {[%clk
0:00:29.7]} 25. e5 {[%clk 0:00:24.4]} 25... Qf4 {[%clk 0:00:26.4]} 26. Qc3
{[%clk 0:00:17.6]} 26... Be6 {[%clk 0:00:22.5]} 27. exd6 {[%clk 0:00:12.8]}
27... Qxd6 {[%clk 0:00:21.7]} 28. a3 {[%clk 0:00:10.9]} 28... h5 {[%clk
0:00:20.4]} 29. h4 {[%clk 0:00:10.1]} 29... Bg4 {[%clk 0:00:19.1]} 30. Ne5
{[%clk 0:00:09.2]} 30... Be6 {[%clk 0:00:11.4]} 31. Ne4 {[%clk 0:00:07.5]} 31...
Qd5 {[%clk 0:00:10.4]} 32. Ng5 {[%clk 0:00:06.9]} 32... Bxe5 {[%clk 0:00:10.3]}
33. dxe5 {[%clk 0:00:07]} 33... Kg7 {[%clk 0:00:10.7]} 34. Nxe6+ {[%clk
0:00:06.6]} 34... Qxe6 {[%clk 0:00:11]} 35. Qe3 {[%clk 0:00:07.2]} 35... Qd5
{[%clk 0:00:10.7]} 36. g3 {[%clk 0:00:07.5]} 36... Qd1+ {[%clk 0:00:09.5]} 37.
Kh2 {[%clk 0:00:07.7]} 37... Qd5 {[%clk 0:00:09.5]} 38. Qc3 {[%clk 0:00:07]}
38... Qe6 {[%clk 0:00:06.2]} 39. b3 {[%clk 0:00:06.5]} 39... Kg8 {[%clk
0:00:04.8]} 40. a4 {[%clk 0:00:06.1]} 40... bxa4 {[%clk 0:00:04.3]} 41. bxa4
{[%clk 0:00:07]} 41... Kg7 {[%clk 0:00:04.7]} 42. a5 {[%clk 0:00:07.2]} 42...
Kg8 {[%clk 0:00:04.4]} 43. Qd4 {[%clk 0:00:06.6]} 43... Kg7 {[%clk 0:00:03.8]}
44. Qb6 {[%clk 0:00:05.2]} 44... Qf5 {[%clk 0:00:02.9]} 45. Qd4 {[%clk
0:00:03.3]} 45... Kg8 {[%clk 0:00:02.5]} 46. Kg1 {[%clk 0:00:02.4]} 46... Qb1+
{[%clk 0:00:01.6]} 47. Kh2 {[%clk 0:00:02.3]} 47... Qf5 {[%clk 0:00:01.6]} 48.
Kg2 {[%clk 0:00:02.2]} 48... Qc8 {[%clk 0:00:01.1]} 49. Qd6 {[%clk 0:00:01.8]}
49... Qb7+ {[%clk 0:00:01.2]} 50. Kh2 {[%clk 0:00:01.7]} 50... Qb2 {[%clk
0:00:01.4]} 51. Qd8+ {[%clk 0:00:02.1]} 51... Kh7 {[%clk 0:00:01.3]} 52. Qb6
{[%clk 0:00:02.9]} 1-0

[Event "Early-Titled-Tuesday-Blitz-October-24-2023"]
[Site "Chess.com"]
[Date "2023.10.24"]
[Round "5"]
[White "NovozhilovSemen"]
[Black "GHANDEEVAM2003"]
[Result "0-1"]
[WhiteElo "2696"]
[BlackElo "3027"]
[TimeControl "180+1"]
[EndTime "8:55:54 PDT"]
[Termination "GHANDEEVAM2003 won by resignation"]

1. d4 {[%clk 0:03:00.9]} 1... b6 {[%clk 0:02:57.4]} 2. e4 {[%clk 0:02:59.7]}
2... Bb7 {[%clk 0:02:57.4]} 3. Bd3 {[%clk 0:02:59.9]} 3... g6 {[%clk 0:02:57]}
4. Nf3 {[%clk 0:02:59.9]} 4... Bg7 {[%clk 0:02:57.4]} 5. Nc3 {[%clk 0:02:58.1]}
5... e6 {[%clk 0:02:56.7]} 6. Be3 {[%clk 0:02:58.3]} 6... d6 {[%clk 0:02:54.7]}
7. O-O {[%clk 0:02:55.2]} 7... a6 {[%clk 0:02:54.9]} 8. a4 {[%clk 0:02:52.2]}
8... h6 {[%clk 0:02:54.5]} 9. h3 {[%clk 0:02:51.4]} 9... Nd7 {[%clk 0:02:53.5]}
10. Qe2 {[%clk 0:02:51.5]} 10... Ne7 {[%clk 0:02:52.2]} 11. Rad1 {[%clk
0:02:51.1]} 11... g5 {[%clk 0:02:52.2]} 12. Nh2 {[%clk 0:02:48.1]} 12... Ng6
{[%clk 0:02:47.1]} 13. g3 {[%clk 0:02:35.1]} 13... h5 {[%clk 0:02:26.7]} 14. f4
{[%clk 0:02:26.8]} 14... gxf4 {[%clk 0:02:24.3]} 15. gxf4 {[%clk 0:02:27.1]}
15... Qh4 {[%clk 0:02:24.9]} 16. Qg2 {[%clk 0:02:07.2]} 16... O-O-O {[%clk
0:02:16.7]} 17. Nf3 {[%clk 0:02:06.6]} 17... Qe7 {[%clk 0:02:16.5]} 18. Kh2
{[%clk 0:01:58.9]} 18... Bh6 {[%clk 0:02:10]} 19. Qd2 {[%clk 0:01:52.2]} 19...
Rdg8 {[%clk 0:02:03.5]} 20. Rde1 {[%clk 0:01:51.2]} 20... Qf6 {[%clk 0:02:00.6]}
21. Ng5 {[%clk 0:01:34.3]} 21... Qg7 {[%clk 0:01:48.1]} 22. Rg1 {[%clk
0:01:30.7]} 22... Ndf8 {[%clk 0:01:35.6]} 23. d5 {[%clk 0:01:13.1]} 23... Qf6
{[%clk 0:01:14.7]} 24. Ref1 {[%clk 0:01:00]} 24... e5 {[%clk 0:01:09.1]} 25. f5
{[%clk 0:00:53.1]} 25... Nf4 {[%clk 0:01:07.9]} 26. Bxf4 {[%clk 0:00:53]} 26...
exf4 {[%clk 0:01:08.1]} 27. Nf3 {[%clk 0:00:53.4]} 27... Rg3 {[%clk 0:01:05.9]}
28. Ne2 {[%clk 0:00:52.7]} 28... Nd7 {[%clk 0:01:01.9]} 29. Qc3 {[%clk
0:00:49.8]} 29... Qxc3 {[%clk 0:00:49.4]} 30. Nxc3 {[%clk 0:00:49.1]} 30... h4
{[%clk 0:00:35.8]} 31. Ne2 {[%clk 0:00:45.3]} 31... a5 {[%clk 0:00:32.3]} 32.
Nxg3 {[%clk 0:00:35.9]} 32... fxg3+ {[%clk 0:00:33.2]} 33. Kg2 {[%clk 0:00:35]}
33... Be3 {[%clk 0:00:32.9]} 34. Rh1 {[%clk 0:00:31.4]} 34... Kd8 {[%clk
0:00:30.4]} 35. Re1 {[%clk 0:00:24.7]} 35... Bf4 {[%clk 0:00:25.6]} 36. Nd4
{[%clk 0:00:19.1]} 36... Be5 {[%clk 0:00:22.1]} 37. c3 {[%clk 0:00:18.6]} 37...
Ke7 {[%clk 0:00:21.8]} 38. Bc2 {[%clk 0:00:18.6]} 38... Ba6 {[%clk 0:00:20.1]}
39. Nc6+ {[%clk 0:00:18.1]} 39... Kf6 {[%clk 0:00:20.8]} 40. b4 {[%clk
0:00:15.4]} 40... Bxc3 {[%clk 0:00:20.2]} 41. b5 {[%clk 0:00:15.3]} 41... Bb7
{[%clk 0:00:17.3]} 42. Re3 {[%clk 0:00:14.3]} 42... Be5 {[%clk 0:00:17.4]} 43.
Bd3 {[%clk 0:00:13.2]} 43... Nc5 {[%clk 0:00:17.6]} 44. Bc2 {[%clk 0:00:13.2]}
44... Bc8 {[%clk 0:00:17.6]} 45. Nxe5 {[%clk 0:00:11.4]} 45... Kxe5 {[%clk
0:00:18.5]} 46. f6 {[%clk 0:00:11.8]} 46... Rh6 {[%clk 0:00:11]} 47. Rf1 {[%clk
0:00:11.9]} 47... Bd7 {[%clk 0:00:11.4]} 48. Ref3 {[%clk 0:00:11.6]} 48... Bc8
{[%clk 0:00:07.3]} 49. Rf4 {[%clk 0:00:10.8]} 49... Nd7 {[%clk 0:00:07.1]} 50.
Rf5+ {[%clk 0:00:10.3]} 50... Kd4 {[%clk 0:00:07.7]} 51. Rd1+ {[%clk 0:00:08.9]}
51... Kc3 {[%clk 0:00:07.3]} 52. Bb1 {[%clk 0:00:09.1]} 52... Ne5 {[%clk
0:00:07.3]} 53. Rg5 {[%clk 0:00:08]} 53... Rxf6 {[%clk 0:00:07.1]} 54. Rf1
{[%clk 0:00:07.7]} 54... Bxh3+ {[%clk 0:00:06.4]} 55. Kxh3 {[%clk 0:00:06.6]}
55... Rxf1 {[%clk 0:00:07.3]} 0-1

[Event "Early-Titled-Tuesday-Blitz-October-24-2023"]
[Site "Chess.com"]
[Date "2023.10.24"]
[Round "5"]
[White "MarijaKuznecova"]
[Black "zeebraa"]
[Result "1/2-1/2"]
[WhiteElo "2407"]
[BlackElo "2275"]
[TimeControl "180+1"]
[EndTime "8:55:56 PDT"]
[Termination "Game drawn - insufficient material"]

1. e4 {[%clk 0:03:00.9]} 1... c5 {[%clk 0:02:59.1]} 2. Nf3 {[%clk 0:02:58.1]}
2... Nc6 {[%clk 0:02:59.7]} 3. d4 {[%clk 0:02:57.9]} 3... cxd4 {[%clk
0:03:00.6]} 4. Nxd4 {[%clk 0:02:58.6]} 4... Nf6 {[%clk 0:03:01.1]} 5. Nc3 {[%clk
0:02:59.2]} 5... e5 {[%clk 0:03:01.7]} 6. Ndb5 {[%clk 0:02:59.4]} 6... d6 {[%clk
0:03:02.4]} 7. Bg5 {[%clk 0:03:00]} 7... a6 {[%clk 0:03:02.5]} 8. Na3 {[%clk
0:03:00.7]} 8... b5 {[%clk 0:03:02.7]} 9. Nd5 {[%clk 0:03:01.4]} 9... Be7 {[%clk
0:03:03.2]} 10. Bxf6 {[%clk 0:03:02]} 10... Bxf6 {[%clk 0:03:03.9]} 11. c3
{[%clk 0:03:02.7]} 11... O-O {[%clk 0:03:03.5]} 12. Nc2 {[%clk 0:03:03.2]} 12...
Rb8 {[%clk 0:03:04.1]} 13. a4 {[%clk 0:03:02.3]} 13... bxa4 {[%clk 0:03:02.4]}
14. Ncb4 {[%clk 0:03:02.8]} 14... Nxb4 {[%clk 0:02:56]} 15. cxb4 {[%clk
0:03:03.7]} 15... a5 {[%clk 0:02:41.5]} 16. b5 {[%clk 0:02:58.3]} 16... Bg5
{[%clk 0:02:15.3]} 17. Qxa4 {[%clk 0:02:41]} 17... f5 {[%clk 0:02:09.5]} 18.
Qxa5 {[%clk 0:02:25.3]} 18... fxe4 {[%clk 0:01:54.6]} 19. Qxd8 {[%clk
0:02:21.4]} 19... Bxd8 {[%clk 0:01:55.1]} 20. Bc4 {[%clk 0:02:20.7]} 20... Be6
{[%clk 0:01:48]} 21. O-O {[%clk 0:02:19.5]} 21... Bxd5 {[%clk 0:01:43]} 22.
Bxd5+ {[%clk 0:02:20.4]} 22... Kh8 {[%clk 0:01:42.9]} 23. Bc6 {[%clk 0:02:19.8]}
23... Bb6 {[%clk 0:01:29.2]} 24. Bxe4 {[%clk 0:02:18.1]} 24... Bd4 {[%clk
0:01:29.4]} 25. Bc6 {[%clk 0:02:17.1]} 25... Bxb2 {[%clk 0:01:29.2]} 26. Ra7
{[%clk 0:02:16.1]} 26... Bd4 {[%clk 0:01:28.8]} 27. Rd7 {[%clk 0:02:16.5]} 27...
Bc5 {[%clk 0:01:27]} 28. g3 {[%clk 0:02:15.4]} 28... Rbd8 {[%clk 0:01:15]} 29.
Kg2 {[%clk 0:02:08.5]} 29... Rxd7 {[%clk 0:01:14.8]} 30. Bxd7 {[%clk 0:02:09.4]}
30... h6 {[%clk 0:01:08.1]} 31. f3 {[%clk 0:02:09.6]} 31... Ra8 {[%clk
0:01:04.3]} 32. Rc1 {[%clk 0:02:08.2]} 32... Ra2+ {[%clk 0:01:03.7]} 33. Kh3
{[%clk 0:02:08.2]} 33... Rb2 {[%clk 0:01:01.2]} 34. Ra1 {[%clk 0:02:01.9]} 34...
Kh7 {[%clk 0:01:00.4]} 35. Bf5+ {[%clk 0:01:57.9]} 35... g6 {[%clk 0:00:58.6]}
36. Bd7 {[%clk 0:01:56.7]} 36... Kg7 {[%clk 0:00:55.7]} 37. Ra8 {[%clk
0:01:54.5]} 37... h5 {[%clk 0:00:52.1]} 38. Bc6 {[%clk 0:01:50.5]} 38... Bg1
{[%clk 0:00:39.6]} 39. g4 {[%clk 0:01:50.3]} 39... hxg4+ {[%clk 0:00:33.3]} 40.
Kxg4 {[%clk 0:01:44.4]} 40... Bxh2 {[%clk 0:00:31.6]} 41. Rd8 {[%clk 0:01:32.4]}
41... Rb4+ {[%clk 0:00:21.3]} 42. Kh3 {[%clk 0:01:31.3]} 42... Bf4 {[%clk
0:00:20.6]} 43. Rxd6 {[%clk 0:01:29.6]} 43... Kh6 {[%clk 0:00:20.6]} 44. Be8
{[%clk 0:01:25.8]} 44... e4 {[%clk 0:00:12.7]} 45. Rxg6+ {[%clk 0:01:22]} 45...
Kh7 {[%clk 0:00:13.3]} 46. fxe4 {[%clk 0:01:08.8]} 46... Rxe4 {[%clk 0:00:11.5]}
47. Bf7 {[%clk 0:01:09]} 47... Re7 {[%clk 0:00:10.5]} 48. Rf6 {[%clk 0:01:07.9]}
48... Bg5 {[%clk 0:00:10.4]} 49. Rf5 {[%clk 0:01:07.5]} 49... Be3 {[%clk
0:00:08.9]} 50. Kg4 {[%clk 0:01:07]} 50... Kg7 {[%clk 0:00:08.9]} 51. Bd5 {[%clk
0:01:07.2]} 51... Bb6 {[%clk 0:00:08.7]} 52. Rf4 {[%clk 0:01:05.5]} 52... Re3
{[%clk 0:00:08.6]} 53. Rc4 {[%clk 0:01:05.4]} 53... Rd3 {[%clk 0:00:08]} 54. Rc6
{[%clk 0:01:03.3]} 54... Rxd5 {[%clk 0:00:07]} 55. Rxb6 {[%clk 0:01:02.7]} 55...
Kf7 {[%clk 0:00:07.1]} 56. Kf4 {[%clk 0:01:00.6]} 56... Ke7 {[%clk 0:00:07.6]}
57. Ke4 {[%clk 0:01:01.2]} 57... Rh5 {[%clk 0:00:07.2]} 58. Rb7+ {[%clk
0:00:58.4]} 58... Kd6 {[%clk 0:00:06.8]} 59. Kd4 {[%clk 0:00:58]} 59... Rh4+
{[%clk 0:00:06]} 60. Kc3 {[%clk 0:00:58.1]} 60... Kc5 {[%clk 0:00:06.3]} 61. Kb3
{[%clk 0:00:57.9]} 61... Rh3+ {[%clk 0:00:04.2]} 62. Ka4 {[%clk 0:00:58]} 62...
Rh1 {[%clk 0:00:04.5]} 63. Rc7+ {[%clk 0:00:52.1]} 63... Kb6 {[%clk 0:00:04.6]}
64. Rc6+ {[%clk 0:00:51]} 64... Kb7 {[%clk 0:00:05.2]} 65. Rg6 {[%clk
0:00:51.6]} 65... Ra1+ {[%clk 0:00:05.5]} 66. Kb4 {[%clk 0:00:50.8]} 66... Rb1+
{[%clk 0:00:06.1]} 67. Kc5 {[%clk 0:00:51.5]} 67... Rc1+ {[%clk 0:00:06.8]} 68.
Kd4 {[%clk 0:00:51.8]} 68... Rd1+ {[%clk 0:00:07.4]} 69. Ke5 {[%clk 0:00:51.9]}
69... Re1+ {[%clk 0:00:07.8]} 70. Kd6 {[%clk 0:00:52.1]} 70... Rd1+ {[%clk
0:00:08.1]} 71. Ke7 {[%clk 0:00:52.7]} 71... Rb1 {[%clk 0:00:07.9]} 72. Rg5
{[%clk 0:00:51.1]} 72... Kb6 {[%clk 0:00:07.7]} 73. Kd6 {[%clk 0:00:51.1]} 73...
Rxb5 {[%clk 0:00:07.6]} 74. Rxb5+ {[%clk 0:00:52]} 74... Kxb5 {[%clk 0:00:07.9]}
1/2-1/2

[Event "Early-Titled-Tuesday-Blitz-October-24-2023"]
[Site "Chess.com"]
[Date "2023.10.24"]
[Round "5"]
[White "DopplerCharlotteDeWitte"]
[Black "Fh2411"]
[Result "1-0"]
[WhiteElo "2784"]
[BlackElo "2509"]
[TimeControl "180+1"]
[EndTime "8:55:57 PDT"]
[Termination "DopplerCharlotteDeWitte won on time"]

1. e4 {[%clk 0:02:56.9]} 1... c6 {[%clk 0:02:59.4]} 2. d4 {[%clk 0:02:56.8]}
2... d5 {[%clk 0:03:00.1]} 3. exd5 {[%clk 0:02:57.7]} 3... cxd5 {[%clk
0:03:00.9]} 4. Bd3 {[%clk 0:02:57.5]} 4... Nc6 {[%clk 0:03:00.9]} 5. Nf3 {[%clk
0:02:56.9]} 5... Bg4 {[%clk 0:02:59.6]} 6. c3 {[%clk 0:02:56.4]} 6... e6 {[%clk
0:02:59.4]} 7. Bf4 {[%clk 0:02:56]} 7... Nf6 {[%clk 0:02:55.8]} 8. Nbd2 {[%clk
0:02:55.2]} 8... Be7 {[%clk 0:02:55.5]} 9. O-O {[%clk 0:02:52.8]} 9... Bh5
{[%clk 0:02:52.9]} 10. Re1 {[%clk 0:02:50.8]} 10... Bg6 {[%clk 0:02:51.7]} 11.
Bxg6 {[%clk 0:02:47.5]} 11... hxg6 {[%clk 0:02:52.6]} 12. h3 {[%clk 0:02:47.3]}
12... O-O {[%clk 0:02:43.4]} 13. a4 {[%clk 0:02:47.2]} 13... Rc8 {[%clk
0:02:40.2]} 14. g3 {[%clk 0:02:20.7]} 14... Na5 {[%clk 0:02:29.3]} 15. Ne5
{[%clk 0:02:17.7]} 15... Nd7 {[%clk 0:02:28.7]} 16. h4 {[%clk 0:02:15.4]} 16...
Nxe5 {[%clk 0:02:27.8]} 17. Bxe5 {[%clk 0:02:16.3]} 17... Nc4 {[%clk 0:02:15]}
18. Nxc4 {[%clk 0:02:15.2]} 18... dxc4 {[%clk 0:02:04.3]} 19. Qf3 {[%clk
0:02:00.5]} 19... Qd7 {[%clk 0:01:59.7]} 20. Kg2 {[%clk 0:01:50.8]} 20... Rfd8
{[%clk 0:01:59.6]} 21. h5 {[%clk 0:01:50.3]} 21... gxh5 {[%clk 0:01:55.2]} 22.
Qxh5 {[%clk 0:01:45.9]} 22... Qd5+ {[%clk 0:01:55.6]} 23. Qf3 {[%clk 0:01:44.3]}
23... Qxf3+ {[%clk 0:01:37]} 24. Kxf3 {[%clk 0:01:45.2]} 24... f6 {[%clk
0:01:37.6]} 25. Bf4 {[%clk 0:01:45.2]} 25... Kf7 {[%clk 0:01:38.2]} 26. g4
{[%clk 0:01:39.3]} 26... Rd5 {[%clk 0:01:33.6]} 27. Rh1 {[%clk 0:01:33.7]} 27...
a5 {[%clk 0:01:30.5]} 28. Ke4 {[%clk 0:01:28.8]} 28... b5 {[%clk 0:01:26.1]} 29.
axb5 {[%clk 0:01:28.6]} 29... Rxb5 {[%clk 0:01:27]} 30. Ra2 {[%clk 0:01:27.7]}
30... Rc6 {[%clk 0:01:24.9]} 31. Rha1 {[%clk 0:01:25.7]} 31... Bd8 {[%clk
0:01:24.6]} 32. Bc1 {[%clk 0:01:21.8]} 32... f5+ {[%clk 0:01:01.6]} 33. Kf3
{[%clk 0:01:22.2]} 33... fxg4+ {[%clk 0:00:59.6]} 34. Kxg4 {[%clk 0:01:23.1]}
34... Rf5 {[%clk 0:01:00.2]} 35. Be3 {[%clk 0:01:19.7]} 35... Bc7 {[%clk
0:00:46.5]} 36. Rh1 {[%clk 0:01:18.4]} 36... Bd6 {[%clk 0:00:39.9]} 37. Rh8
{[%clk 0:01:13.6]} 37... Bf8 {[%clk 0:00:39.9]} 38. Rh5 {[%clk 0:01:08.4]} 38...
Kf6 {[%clk 0:00:29.5]} 39. Rxa5 {[%clk 0:00:58.8]} 39... g6 {[%clk 0:00:22.4]}
40. Bg5+ {[%clk 0:00:55.9]} 40... Kg7 {[%clk 0:00:17.9]} 41. Ra7+ {[%clk
0:00:55.3]} 41... Kg8 {[%clk 0:00:13.2]} 42. Rh2 {[%clk 0:00:48.5]} 42... Rb6
{[%clk 0:00:12.9]} 43. f4 {[%clk 0:00:48]} 43... Rf7 {[%clk 0:00:08]} 44. Rh8+
{[%clk 0:00:34.3]} 44... Kxh8 {[%clk 0:00:06.7]} 45. Rxf7 {[%clk 0:00:35.2]}
45... Kg8 {[%clk 0:00:06.5]} 46. Rc7 {[%clk 0:00:35.8]} 46... Rxb2 {[%clk
0:00:04.5]} 47. Rxc4 {[%clk 0:00:35.2]} 47... Rg2+ {[%clk 0:00:03.3]} 48. Kf3
{[%clk 0:00:35.3]} 48... Rc2 {[%clk 0:00:04.2]} 49. Rc8 {[%clk 0:00:27.7]} 49...
Kf7 {[%clk 0:00:04.6]} 50. Rc7+ {[%clk 0:00:27.8]} 50... Ke8 {[%clk 0:00:05.1]}
51. Rc8+ {[%clk 0:00:24.7]} 51... Kf7 {[%clk 0:00:05]} 52. Ke4 {[%clk
0:00:22.6]} 52... Ba3 {[%clk 0:00:04.5]} 53. Kd3 {[%clk 0:00:21]} 53... Rc1
{[%clk 0:00:03.2]} 54. Rc7+ {[%clk 0:00:19.6]} 54... Kf8 {[%clk 0:00:02]} 55. f5
{[%clk 0:00:20.3]} 55... Rd1+ {[%clk 0:00:01.5]} 56. Kc2 {[%clk 0:00:21]} 56...
Rg1 {[%clk 0:00:01]} 57. Bh6+ {[%clk 0:00:21.4]} 57... Ke8 {[%clk 0:00:01.1]}
58. fxe6 {[%clk 0:00:16.8]} 58... Re1 {[%clk 0:00:01.2]} 59. d5 {[%clk
0:00:16.9]} 59... Bd6 {[%clk 0:00:01.2]} 60. Rd7 {[%clk 0:00:17]} 1-0